Workbook

Sheet Main
B4: الاسم | C4: المبلغ | H4: Example
B5: محمود الخطيب | C5: 200 | H5: محمود الخطيب
B6: رضا إسماعيل | C6: 180 | H6: رضا إسماعيل
B7: عمر فتحى | C7: 130 | H7: عمر فتحى
B8: محمد إدريس | C8: 120 | H8: محمد إدريس
B9: زياد فؤاد | C9: 110 | H9: زياد فؤاد
B10: إياد ياسر | C10: 45 | H10: إياد ياسر
B11: توفيقة وليد | C11: 191 | H11: توفيقة وليد
B12: وليد سيد | C12: 210 | H12: وليد سيد
B13: حمادة ذكى | C13: 345 | H13: حمادة ذكى
B14: أحمد علي | C14: 510 | H14: أحمد علي
B15: توفيق الدقن | C15: 710 | H15: توفيق الدقن
B16: حبيبة متولى | C16: 275 | H16: حبيبة متولى

Sheet Example
B5: الكود | C5: =VLOOKUP($C$6,Main!$B$5:$C$251,2,0) -> 
B6: الاسم
B8: م | C8: التاريخ | D8: البيان | E8: مدين | F8: دائن | G8: رصيد
G9: =0+E9-F9 -> 0
G10: =+G9+E10-F10 -> 0
G11: =+G10+E11-F11 -> 0
G12: 0
G13: 0
G14: 0
G15: 0
G16: 0
G17: 0
G18: 0
G19: 0
G20: 0
G21: 0
G22: 0

Sheet محمود الخطيب
B5: الكود | C5: =VLOOKUP($C$6,Main!$B$5:$C$251,2,0) -> 200
B6: الاسم | C6: محمود الخطيب
B8: م | C8: التاريخ | D8: البيان | E8: مدين | F8: دائن | G8: رصيد
G9: =0+E9-F9 -> 0
G10: =+G9+E10-F10 -> 0
G11: =+G10+E11-F11 -> 0
G12: 0
G13: 0
G14: 0
G15: 0
G16: 0
G17: 0
G18: 0
G19: 0
G20: 0
G21: 0
G22: 0

Sheet رضا إسماعيل
B5: الكود | C5: =VLOOKUP($C$6,Main!$B$5:$C$251,2,0) -> 180
B6: الاسم | C6: رضا إسماعيل
B8: م | C8: التاريخ | D8: البيان | E8: مدين | F8: دائن | G8: رصيد
G9: =0+E9-F9 -> 0
G10: =+G9+E10-F10 -> 0
G11: =+G10+E11-F11 -> 0
G12: 0
G13: 0
G14: 0
G15: 0
G16: 0
G17: 0
G18: 0
G19: 0
G20: 0
G21: 0
G22: 0

Sheet عمر فتحى
B5: الكود | C5: =VLOOKUP($C$6,Main!$B$5:$C$251,2,0) -> 130
B6: الاسم | C6: عمر فتحى
B8: م | C8: التاريخ | D8: البيان | E8: مدين | F8: دائن | G8: رصيد
G9: =0+E9-F9 -> 0
G10: =+G9+E10-F10 -> 0
G11: =+G10+E11-F11 -> 0
G12: 0
G13: 0
G14: 0
G15: 0
G16: 0
G17: 0
G18: 0
G19: 0
G20: 0
G21: 0
G22: 0

Sheet محمد إدريس
B5: الكود | C5: =VLOOKUP($C$6,Main!$B$5:$C$251,2,0) -> 120
B6: الاسم | C6: محمد إدريس
B8: م | C8: التاريخ | D8: البيان | E8: مدين | F8: دائن | G8: رصيد
G9: =0+E9-F9 -> 0
G10: =+G9+E10-F10 -> 0
G11: =+G10+E11-F11 -> 0
G12: 0
G13: 0
G14: 0
G15: 0
G16: 0
G17: 0
G18: 0
G19: 0
G20: 0
G21: 0
G22: 0

Sheet زياد فؤاد
B5: الكود | C5: =VLOOKUP($C$6,Main!$B$5:$C$251,2,0) -> 110
B6: الاسم | C6: زياد فؤاد
B8: م | C8: التاريخ | D8: البيان | E8: مدين | F8: دائن | G8: رصيد
G9: =0+E9-F9 -> 0
G10: =+G9+E10-F10 -> 0
G11: =+G10+E11-F11 -> 0
G12: 0
G13: 0
G14: 0
G15: 0
G16: 0
G17: 0
G18: 0
G19: 0
G20: 0
G21: 0
G22: 0

Sheet إياد ياسر
B5: الكود | C5: =VLOOKUP($C$6,Main!$B$5:$C$251,2,0) -> 45
B6: الاسم | C6: إياد ياسر
B8: م | C8: التاريخ | D8: البيان | E8: مدين | F8: دائن | G8: رصيد
G9: =0+E9-F9 -> 0
G10: =+G9+E10-F10 -> 0
G11: =+G10+E11-F11 -> 0
G12: 0
G13: 0
G14: 0
G15: 0
G16: 0
G17: 0
G18: 0
G19: 0
G20: 0
G21: 0
G22: 0

Sheet توفيقة وليد
B5: الكود | C5: =VLOOKUP($C$6,Main!$B$5:$C$251,2,0) -> 191
B6: الاسم | C6: توفيقة وليد
B8: م | C8: التاريخ | D8: البيان | E8: مدين | F8: دائن | G8: رصيد
G9: =0+E9-F9 -> 0
G10: =+G9+E10-F10 -> 0
G11: =+G10+E11-F11 -> 0
G12: 0
G13: 0
G14: 0
G15: 0
G16: 0
G17: 0
G18: 0
G19: 0
G20: 0
G21: 0
G22: 0

Sheet وليد سيد
B5: الكود | C5: =VLOOKUP($C$6,Main!$B$5:$C$251,2,0) -> 210
B6: الاسم | C6: وليد سيد
B8: م | C8: التاريخ | D8: البيان | E8: مدين | F8: دائن | G8: رصيد
G9: =0+E9-F9 -> 0
G10: =+G9+E10-F10 -> 0
G11: =+G10+E11-F11 -> 0
G12: 0
G13: 0
G14: 0
G15: 0
G16: 0
G17: 0
G18: 0
G19: 0
G20: 0
G21: 0
G22: 0

Sheet حمادة ذكى
B5: الكود | C5: =VLOOKUP($C$6,Main!$B$5:$C$251,2,0) -> 345
B6: الاسم | C6: حمادة ذكى
B8: م | C8: التاريخ | D8: البيان | E8: مدين | F8: دائن | G8: رصيد
G9: =0+E9-F9 -> 0
G10: =+G9+E10-F10 -> 0
G11: =+G10+E11-F11 -> 0
G12: 0
G13: 0
G14: 0
G15: 0
G16: 0
G17: 0
G18: 0
G19: 0
G20: 0
G21: 0
G22: 0

Sheet أحمد علي
B5: الكود | C5: =VLOOKUP($C$6,Main!$B$5:$C$251,2,0) -> 510
B6: الاسم | C6: أحمد علي
B8: م | C8: التاريخ | D8: البيان | E8: مدين | F8: دائن | G8: رصيد
G9: =0+E9-F9 -> 0
G10: =+G9+E10-F10 -> 0
G11: =+G10+E11-F11 -> 0
G12: 0
G13: 0
G14: 0
G15: 0
G16: 0
G17: 0
G18: 0
G19: 0
G20: 0
G21: 0
G22: 0

Sheet توفيق الدقن
B5: الكود | C5: =VLOOKUP($C$6,Main!$B$5:$C$251,2,0) -> 710
B6: الاسم | C6: توفيق الدقن
B8: م | C8: التاريخ | D8: البيان | E8: مدين | F8: دائن | G8: رصيد
G9: =0+E9-F9 -> 0
G10: =+G9+E10-F10 -> 0
G11: =+G10+E11-F11 -> 0
G12: 0
G13: 0
G14: 0
G15: 0
G16: 0
G17: 0
G18: 0
G19: 0
G20: 0
G21: 0
G22: 0

Sheet حبيبة متولى
B5: الكود | C5: =VLOOKUP($C$6,Main!$B$5:$C$251,2,0) -> 275
B6: الاسم | C6: حبيبة متولى
B8: م | C8: التاريخ | D8: البيان | E8: مدين | F8: دائن | G8: رصيد
G9: =0+E9-F9 -> 0
G10: =+G9+E10-F10 -> 0
G11: =+G10+E11-F11 -> 0
G12: 0
G13: 0
G14: 0
G15: 0
G16: 0
G17: 0
G18: 0
G19: 0
G20: 0
G21: 0
G22: 0
